fUSD/lending_fUSD_20240608
["ID","MTS","AMOUNT","RATE_DAILY","PERIOD"]
[328819125,1717836644493,-167.0,0.00022346,2]
[328819126,1717836644504,-151.72,0.00022552,2]
[328819127,1717836644516,-10620.01,0.00022562,2]
[328819128,1717836644528,-444.55,0.00022645,2]
[328819129,1717836644539,-2516.78891187,0.00023,2]
[328819130,1717836644550,-167.0,0.00023084,2]
[328819131,1717836644560,-2271.92464954,0.00023264,2]
[328819132,1717836644571,-172.27,0.0002329,2]
[328819133,1717836644581,-1224.6466685,0.00023471,2]
[328819134,1717836644592,-804.97,0.00023765,2]
[328819135,1717836644604,-1000.0,0.00023767,2]
[328819136,1717836644615,-10281.0,0.0002377,2]
[328819137,1717836644625,-444.55,0.00023778,2]
[328819138,1717836644636,-167.0,0.00023821,2]
[328819139,1717836644647,-30479.51332791,0.00024,3]
[328819140,1717836644657,-2502.6,0.00024,15]
[328819141,1717836644668,-180.0,0.0002423,2]
[328819142,1717836644679,-166.71,0.00024374,2]
[328819143,1717836644689,-172.24,0.00024384,2]
[328819144,1717836644701,-151.72,0.00024384,2]
[328819145,1717836644711,-500.0,0.00024384,2]
[328819146,1717836644721,-500.0,0.00024384,2]
[328819147,1717836644731,-500.0,0.00024384,2]
[328819148,1717836644741,-500.0,0.00024384,2]
[328819149,1717836644751,-500.0,0.00024384,2]
[328819150,1717836644762,-500.0,0.00024384,2]
[328819151,1717836644772,-500.0,0.00024384,2]
[328819152,1717836644782,-500.0,0.00024384,2]
[328819153,1717836644791,-500.0,0.00024384,2]
[328819154,1717836644803,-500.0,0.00024384,2]
[328819155,1717836644812,-500.0,0.00024384,2]
[328819156,1717836644822,-500.0,0.00024384,2]
[328819157,1717836644832,-500.0,0.00024384,2]
[328819158,1717836644842,-500.0,0.00024384,2]
[328819160,1717836644851,-500.0,0.00024384,2]
[328819162,1717836644862,-500.0,0.00024384,2]
[328819164,1717836644872,-167.0,0.00024559,2]
[328819166,1717836644882,-2271.92464954,0.00024591,2]
[328819168,1717836644892,-151.72,0.00024789,2]
[328819169,1717836644902,-7273.45821555,0.00024798,2]
[328819170,1717836644911,-7273.45821553,0.00024798,2]
[328819171,1717836644923,-7273.45821553,0.00024798,2]
[328819172,1717836644933,-7273.45821553,0.00024798,2]
[328819173,1717836644943,-7273.45821553,0.00024798,2]
[328819174,1717836644953,-7273.45821553,0.00024798,2]
[328819175,1717836644963,-5559.11359884,0.00024799,2]
[328819176,1717836644973,-5559.11359878,0.00024799,2]
[328819177,1717836644983,-5559.11359878,0.00024799,2]
[328819178,1717836644994,-5559.11359878,0.00024799,2]
[328819179,1717836645003,-5559.11359878,0.00024799,2]
[328819180,1717836645014,-5559.11359878,0.00024799,2]
[328819181,1717836645023,-800.0,0.00024849,2]
[328819182,1717836645032,-978.0,0.00024867,2]
[328819183,1717836645042,-441.0,0.00024867,2]
[328819184,1717836645052,-615.0,0.00024867,2]
[328819185,1717836645061,-1266.0,0.00024867,2]
[328819186,1717836645071,-1650.0,0.00024867,2]
[328819187,1717836645081,-1830.0,0.00024867,2]
[328819188,1717836645091,-808.0,0.00024867,2]
[328819189,1717836645100,-2405.0,0.00024867,2]
[328819190,1717836645110,-446.0,0.00024867,2]
[328819191,1717836645120,-1304.0,0.00024867,2]
[328819192,1717836645130,-3174.0,0.00024867,2]
[328819193,1717836645139,-546.0,0.00024867,2]
[328819194,1717836645149,-1977.0,0.00024867,2]
[328819195,1717836645159,-5781.0,0.00024867,2]
[328819196,1717836645169,-5153.0,0.00024867,2]
[328819197,1717836645179,-290.0,0.00024867,2]
[328819198,1717836645188,-34146.053,0.00024867,2]
[328819199,1717836645199,-6795.64360929,0.000249,2]
[328819200,1717836645209,-7273.45821553,0.000249,2]
[328819201,1717836645218,-5559.11359878,0.000249,2]
[328819202,1717836645228,-444.55,0.0002491,2]
[328819203,1717836645239,-2702.11,0.0002498,2]
[328819204,1717836645249,-1250.0,0.00025,2]
[328819205,1717836645259,-1392.53462796,0.00025,2]
[328819206,1717836645269,-155.0,0.00025,2]
[328819207,1717836645278,-325.92553654,0.00025,2]
[328819208,1717836645288,-225.14837841,0.00025,2]
[328819209,1717836645298,-159.05442987,0.00025,2]
[328819210,1717836645308,-1276.67123089,0.00025,2]
[328819211,1717836645317,-155.0,0.00025,2]
[328819212,1717836645327,-326.04313189,0.00025,2]
[328819213,1717836645337,-930.15071455,0.00025,2]
[328819214,1717836645346,-706.32929204,0.00025,2]
[328819215,1717836645356,-249.55696984,0.00025,2]
[328819216,1717836645366,-1000.0,0.00025205,2]
[328819217,1717836645379,-167.0,0.00025297,2]
[328819218,1717836645390,-1224.6466685,0.00025614,2]
[328819220,1717836645401,-163.26,0.0002589,2]
[328819222,1717836645411,-2271.92464954,0.00025918,2]
[328819224,1717836645422,-1000.0,0.00025928,2]
[328819226,1717836645432,-2876.0,0.00026,2]
[328819228,1717836645449,-201.106473,0.00026,2]
[328819230,1717836645459,-804.97,0.00026029,2]
[328819232,1717836645470,-167.0,0.00026034,2]
[328819234,1717836645480,-444.55,0.00026042,2]
[328819235,1717836645492,-7273.45821553,0.00026567,2]
[328819236,1717836645502,-5559.11359878,0.00026567,2]
[328819237,1717836645513,-607.82034178,0.00026576,2]
[328819238,1717836645524,-2056.17262383,0.000266,2]
[328819239,1717836645534,-166.71,0.00026811,2]
[328819240,1717836645545,-166.66666666,0.00026813,2]
[328819241,1717836645555,-189.29667544,0.00026822,2]
[328819242,1717836645566,-156.01619075,0.00026828,2]
[328819243,1717836645575,-163.48925101,0.00026876,2]
[328819244,1717836645586,-158.00678787,0.00026902,2]
[328819245,1717836645596,-154.35435874,0.00026938,2]
[328819246,1717836645606,-189.29667544,0.0002694,2]
[328819247,1717836645616,-150.5,0.0002698,15]
[328819248,1717836645626,-150.5,0.0002699,15]
[328819249,1717836645636,-1300.0,0.00027,2]
[328819250,1717836645646,-4028.94618361,0.00027,2]
[328819251,1717836645656,-152.37846221,0.00027117,2]
[328819252,1717836645666,-154.35435874,0.00027127,2]
[328819253,1717836645677,-444.55,0.00027175,2]
[328819254,1717836645687,-189.29667544,0.00027198,2]
[328819255,1717836645698,-2011.83744862,0.000272,2]
[328819256,1717836645708,-189.29667544,0.00027206,2]
[328819257,1717836645718,-189.29667544,0.00027239,2]
[328819258,1717836645729,-2271.92464954,0.00027245,2]
[328819259,1717836645739,-154.35435874,0.00027301,2]
[328819260,1717836645750,-155.06386358,0.0002732,2]
[328819261,1717836645760,-154.40598489,0.00027377,2]
[328819262,1717836645772,-151.72,0.00027387,2]
[328819263,1717836645783,-151.72,0.00027387,2]
[328819264,1717836645793,-151.72,0.00027387,2]
[328819265,1717836645803,-807.88779777,0.0002739,2]
[328819266,1717836645814,-290367.26296368,0.00027397,13]
[328819267,1717836645824,-150.0,0.00027397,2]
[328819268,1717836645835,-500.0,0.00027397,2]
[328819269,1717836645846,-500.0,0.00027397,2]
[328819270,1717836645856,-500.0,0.00027397,2]
[328819271,1717836645866,-500.0,0.00027397,2]
[328819272,1717836645876,-500.0,0.00027397,2]
[328819273,1717836645886,-420.03289913,0.00027397,2]
[328819274,1717836645897,-172.46,0.00027397,2]
[328819275,1717836645907,-759.69,0.00027397,10]
[328819276,1717836645918,-2485.09344287,0.000274,2]
[328819277,1717836645928,-999.0,0.00027424,7]
[328819278,1717836645939,-999.0,0.00027424,7]
[328819279,1717836645950,-829.59202628,0.00027424,7]
[328819280,1717836645960,-155.10754839,0.0002743,2]
[328819281,1717836645970,-156.89139326,0.00027447,2]
[328819282,1717836645980,-152.37846221,0.00027464,2]
[328819283,1717836645990,-189.29667544,0.00027494,2]
[328819284,1717836646000,-150.0,0.00027534,2]
[328819285,1717836646010,-154.35435874,0.00027548,2]
[328819286,1717836646020,-154.35435874,0.00027637,2]
[328819287,1717836646030,-152.37846221,0.0002765,2]
[328819288,1717836646041,-150.0,0.00027671,2]
[328819289,1717836646051,-150.0,0.000277,2]
[328819290,1717836646061,-154.32068212,0.00027702,2]
[328819291,1717836646072,-150.0,0.0002772,2]
[328819292,1717836646082,-156.89139326,0.00027722,2]
[328819293,1717836646092,-1224.6466685,0.00027757,2]
[328819294,1717836646102,-435.919784,0.00027759,2]
[328819295,1717836646112,-150.0,0.00027771,2]
[328819296,1717836646122,-150.0,0.00027808,2]
[328819297,1717836646132,-150.0,0.00027811,2]
[328819298,1717836646143,-152.37846221,0.00027836,2]
[328819299,1717836646153,-150.0,0.00027838,2]
[328819300,1717836646162,-150.0,0.00027862,2]
[328819301,1717836646175,-189.29667544,0.00027862,2]
[328819302,1717836646185,-978.0,0.00027867,2]
[328819303,1717836646195,-1650.0,0.00027867,2]
[328819304,1717836646205,-1830.0,0.00027867,2]
[328819305,1717836646217,-604.778,0.00027867,2]
[328819306,1717836646227,-297.087,0.00027867,2]
[328819307,1717836646238,-1304.0,0.00027867,2]
[328819308,1717836646248,-3174.0,0.00027867,2]
[328819309,1717836646259,-546.0,0.00027867,2]
[328819310,1717836646270,-1977.0,0.00027867,2]
[328819311,1717836646281,-5781.0,0.00027867,2]
[328819312,1717836646294,-5153.0,0.00027867,2]
[328819313,1717836646304,-290.0,0.00027867,2]
[328819314,1717836646315,-150.0,0.00027878,2]
[328819315,1717836646324,-150.0,0.00027893,2]
[328819316,1717836646335,-150.0,0.00027922,2]
[328819317,1717836646345,-150.0,0.00027945,2]
[328819318,1717836646355,-150.0,0.00027964,2]
[328819319,1717836646365,-151.72,0.0002799,2]
[328819320,1717836646374,-150.0,0.00027994,2]
[328819321,1717836646384,-245.2625724,0.00028,2]
[328819322,1717836646795,-23965.99301142,0.00028,2]
[328819323,1717836646807,-4889.1634282,0.00028,2]
[328819324,1717836646874,-3086.38413171,0.00028,2]
[328819325,1717836646887,-1668.02297108,0.00028,2]
[328819326,1717836646920,-8100.10682813,0.00028,2]
[328819327,1717836646929,-200.0,0.00028,2]
[328819328,1717836646939,-4069.0,0.00028,4]
[328819329,1717836646948,-150.0,0.00028004,2]
[328819330,1717836646958,-150.0,0.00028009,2]
[328819331,1717836646968,-150.0,0.00028011,2]
[328819332,1717836646979,-150.0,0.00028023,2]
[328819333,1717836646989,-150.0,0.00028025,2]
[328819334,1717836647000,-150.0,0.00028029,2]
[328819335,1717836647009,-154.35435874,0.0002803,2]
[328819336,1717836647020,-150.0,0.00028048,2]
[328819337,1717836647031,-150.0,0.0002805,2]
[328819338,1717836647041,-150.0,0.00028062,2]
[328819339,1717836647050,-150.0,0.00028065,2]
[328819340,1717836647060,-150.0,0.00028076,2]
[328819341,1717836647070,-150.0,0.00028082,2]
[328819342,1717836647080,-150.0,0.00028104,2]
[328819343,1717836647090,-150.0,0.00028105,2]
[328819344,1717836647100,-435.919784,0.00028106,2]
[328819345,1717836647110,-150.0,0.00028112,2]
[328819346,1717836647121,-150.0,0.00028117,2]
[328819347,1717836647132,-150.0,0.00028119,2]
[328819348,1717836647142,-150.0,0.0002813,2]
[328819349,1717836647152,-154.35435874,0.00028131,2]
[328819350,1717836647162,-150.0,0.00028139,2]
[328819351,1717836647171,-150.0,0.00028145,2]
[328819352,1717836647181,-152.37846221,0.00028149,2]
[328819353,1717836647191,-150.0,0.00028155,2]
[328819354,1717836647202,-150.0,0.00028156,2]
[328819355,1717836647211,-150.0,0.00028157,2]
[328819356,1717836647222,-150.0,0.00028162,2]
[328819357,1717836647231,-150.0,0.00028164,2]
[328819358,1717836647240,-150.0,0.00028166,2]
[328819359,1717836647251,-150.0,0.00028182,2]
[328819360,1717836647260,-150.0,0.00028187,2]
[328819361,1717836647270,-150.0,0.00028188,2]
[328819362,1717836647279,-150.0,0.00028194,2]
[328819363,1717836647289,-150.0,0.00028195,2]
[328819364,1717836647299,-150.0,0.00028208,2]
[328819365,1717836647309,-150.0,0.00028212,2]
[328819366,1717836647319,-150.0,0.00028214,2]
[328819367,1717836647329,-286.04983606,0.00028219,2]
[328819368,1717836647339,-150.0,0.00028222,2]
[328819369,1717836647348,-150.0,0.00028226,2]
[328819370,1717836647358,-150.0,0.00028228,2]
[328819371,1717836647367,-7273.45821553,0.00028233,2]
[328819372,1717836647377,-150.0,0.0002824,2]
[328819373,1717836647387,-150.0,0.00028251,2]
[328819374,1717836647397,-8074.10564114,0.00028252,2]
[328819375,1717836647407,-150.0,0.0002828,2]
[328819376,1717836647416,-150.0,0.00028285,2]
[328819377,1717836647428,-222.964067,0.00028289,2]
[328819378,1717836647438,-804.97,0.00028293,2]
[328819379,1717836647451,-150.0,0.00028303,2]
[328819380,1717836647461,-150.0,0.00028316,2]
[328819381,1717836647470,-150.0,0.00028323,2]
[328819382,1717836647480,-150.0,0.00028327,2]
[328819383,1717836647491,-150.0,0.00028327,2]
[328819384,1717836647501,-156.89139326,0.0002833,2]
[328819385,1717836647511,-150.0,0.00028344,2]
[328819386,1717836647522,-150.0,0.00028357,2]
[328819387,1717836647533,-150.0,0.00028364,2]
[328819388,1717836647544,-154.35435874,0.00028377,2]
[328819389,1717836647554,-150.0,0.00028383,2]
[328819390,1717836647564,-150.0,0.00028394,2]
[328819391,1717836647574,-150.0,0.00028395,2]
[328819392,1717836647583,-150.0,0.00028396,2]
[328819393,1717836647593,-1196.83351,0.0002841,2]
[328819394,1717836647603,-189.29667544,0.00028413,2]
[328819395,1717836647613,-150.0,0.00028417,2]
[328819396,1717836647623,-150.0,0.0002842,2]
[328819397,1717836647632,-150.0,0.0002843,2]
[328819398,1717836647642,-189.29667544,0.0002843,2]
[328819399,1717836647651,-150.0,0.0002844,2]
[328819400,1717836647660,-150.0,0.00028443,2]
[328819401,1717836647671,-150.0,0.00028446,2]
[328819402,1717836647680,-154.35435874,0.00028446,2]
[328819403,1717836647691,-435.919784,0.00028453,2]
[328819404,1717836647700,-150.0,0.00028455,2]
[328819405,1717836647710,-150.0,0.00028458,2]
[328819406,1717836647719,-150.0,0.00028462,2]
[328819407,1717836647729,-154.35435874,0.00028467,2]
[328819408,1717836647739,-150.0,0.00028469,2]
[328819409,1717836647748,-150.0,0.00028475,2]
[328819410,1717836647758,-166.66666665,0.00028477,2]
[328819411,1717836647768,-150.0,0.00028489,2]
[328819412,1717836647778,-163.0996939,0.0002849,2]
[328819413,1717836647787,-150.0,0.00028491,2]
[328819414,1717836647798,-150.0,0.00028492,2]
[328819415,1717836647809,-150.0,0.00028494,2]
[328819416,1717836647819,-1860.22615873,0.000285,4]
[328819417,1717836647830,-150.0,0.00028501,2]
[328819418,1717836647840,-150.0,0.0002851,2]
[328819419,1717836647850,-150.0,0.00028521,2]
[328819420,1717836647860,-150.0,0.0002854,2]
[328819421,1717836647869,-150.0,0.00028555,2]
[328819422,1717836647879,-150.0,0.00028556,2]
[328819423,1717836647888,-150.0,0.00028557,2]
[328819424,1717836647899,-150.0,0.00028562,2]
[328819425,1717836647908,-150.0,0.00028567,2]
[328819426,1717836647918,-150.0,0.00028572,2]
[328819427,1717836647928,-2271.92464954,0.00028573,2]
[328819428,1717836647938,-152.37846221,0.00028576,2]
[328819429,1717836647948,-150.0,0.00028586,2]
[328819430,1717836647957,-150.0,0.00028602,2]
[328819431,1717836647968,-150.0,0.00028617,2]
[328819432,1717836647978,-150.0,0.00028625,2]
[328819433,1717836647988,-150.0,0.00028631,2]
[328819434,1717836647999,-150.0,0.00028639,2]
[328819435,1717836648009,-179.25755862,0.00028644,2]
[328819436,1717836648019,-150.0,0.00028655,2]
[328819437,1717836648029,-150.0,0.00028656,2]
[328819438,1717836648038,-150.0,0.00028656,2]
[328819439,1717836648048,-155.00128118,0.00028658,2]
[328819440,1717836648058,-150.0,0.00028672,2]
[328819441,1717836648067,-156.89139326,0.00028694,2]
[328819442,1717836648077,-488.0,0.000287,12]
[328819443,1717836648087,-345.0,0.000287,2]
[328819444,1717836648097,-160.0,0.000287,2]
[328819445,1717836648107,-190.0,0.000287,12]
[328819446,1717836648117,-176.052862,0.000287,5]
[328819447,1717836648128,-150.0,0.000287,5]
[328819448,1717836648138,-2797.04274715,0.00028702,2]
[328819449,1717836648147,-282.146997,0.00028702,2]
[328819450,1717836648157,-171.738027,0.00028702,2]
[328819451,1717836648283,-7727.439677,0.00028702,2]
[328819452,1717836648295,-150.0,0.00028702,2]
[328819453,1717836648305,-3145.7235597,0.00028704,2]
[328819454,1717836648315,-151.72,0.00028714,2]
[328819455,1717836648325,-151.72,0.00028714,2]
[328819456,1717836648334,-151.72,0.00028714,2]
[328819457,1717836648343,-3661.184886,0.00028724,2]
[328819458,1717836648353,-155.06386358,0.00028734,2]
[328819459,1717836648363,-189.29667544,0.00028749,2]
[328819460,1717836648373,-2876.47280957,0.000288,2]
[328819461,1717836648382,-435.919784,0.000288,2]
[328819462,1717836648392,-154.32068212,0.00028815,2]
[328819463,1717836648401,-1196.83351,0.0002882,2]
[328819464,1717836648411,-314.35,0.00028877,2]
[328819465,1717836648422,-189.29667544,0.00028877,2]
[328819466,1717836648431,-1294.34869874,0.000289,2]
[328819467,1717836648445,-6799.05034124,0.000289,2]
[328819468,1717836648455,-151.0,0.0002896,7]
[328819469,1717836648465,-154.35435874,0.00028961,2]
[328819470,1717836648474,-2573.14822202,0.00028989,8]
[328819471,1717836648485,-357.27440379,0.0002899,2]
[328819472,1717836648495,-151.72,0.0002899,2]
[328819473,1717836648504,-4784.16,0.00028991,2]
[328819474,1717836648514,-150.0,0.00028999,10]
[328819475,1717836648526,-150.0,0.00028999,10]
[328819476,1717836648536,-150.0,0.00028999,10]
[328819477,1717836648546,-7377.40264912,0.00029,2]
[328819478,1717836648555,-1900.0,0.00029,10]
[328819479,1717836648565,-180.0,0.00029,13]
[328819480,1717836648574,-63515.98,0.00029,3]
[328819481,1717836648585,-52513.6432065,0.00029,2]
[328819482,1717836648594,-155.83651546,0.00029,2]
[328819483,1717836648604,-5000.0,0.00029,2]
[328819484,1717836648615,-4868.55801951,0.00029,2]
[328819485,1717836648624,-7855.4654329,0.00029,2]
[328819486,1717836648634,-1350.0,0.00029,2]
[328819487,1717836648644,-1488.41303663,0.00029,2]
[328819488,1717836648653,-4169.40701343,0.00029,2]
[328819489,1717836648663,-5000.0,0.00029,7]
[328819490,1717836648673,-714.03763505,0.00029,2]
[328819491,1717836648682,-4406.3237818,0.00029,2]
[328819492,1717836648692,-181.0,0.00029,13]
[328819493,1717836648702,-300.0,0.00029,7]
[328819494,1717836648711,-418.24310424,0.00029,2]
[328819495,1717836648721,-418.24310424,0.00029,2]
[328819496,1717836648730,-418.24310424,0.00029,2]
[328819497,1717836648740,-151.72,0.00029038,2]
[328819498,1717836648750,-159.828432,0.00029048,2]
[328819499,1717836648760,-180.714101,0.00029048,2]
[328819500,1717836648770,-211.999854,0.00029048,2]
[328819501,1717836648779,-173.896174,0.00029048,2]
[328819502,1717836648790,-191.362027,0.00029048,2]
[328819503,1717836648801,-187.647935,0.00029048,2]
[328819504,1717836648811,-357.305951,0.00029048,2]
[328819505,1717836648822,-265.644203,0.00029048,2]
[328819506,1717836648832,-427.099077,0.00029048,2]
[328819507,1717836648843,-208.391639,0.00029048,2]
[328819508,1717836648853,-263.17055,0.00029048,2]
[328819509,1717836648863,-357.274075,0.00029048,2]
[328819510,1717836648873,-992.996881,0.00029048,2]
[328819511,1717836648883,-1596.397712,0.00029048,2]
[328819512,1717836648892,-1429.0963,0.00029048,2]
[328819513,1717836648902,-3666.797236,0.00029048,2]
[328819514,1717836648911,-234.443871,0.00029048,2]
[328819515,1717836648920,-150.662243,0.00029048,2]
[328819516,1717836648931,-4076.256233,0.00029048,2]
[328819517,1717836648941,-5151.626452,0.00029048,2]
[328819518,1717836648950,-185.480065,0.00029048,2]
[328819519,1717836648960,-235.610829,0.00029048,2]
[328819520,1717836648970,-14570.595756,0.00029048,2]
[328819521,1717836648980,-16305.024929,0.00029048,2]
[328819522,1717836648990,-282.146997,0.00029048,2]
[328819523,1717836649000,-171.738027,0.00029048,2]
[328819524,1717836649009,-7727.439677,0.00029048,2]
[328819525,1717836649019,-155.00128118,0.00029086,2]
[328819526,1717836649029,-3011.36,0.000291,2]
[328819527,1717836649039,-435.919784,0.00029147,2]
[328819528,1717836649048,-161.25760976,0.00029151,2]
[328819529,1717836649061,-155.01619505,0.00029151,2]
[328819530,1717836649070,-189.29667544,0.00029156,2]
[328819531,1717836649079,-153.91,0.00029178,2]
[328819532,1717836649088,-150.0,0.000292,6]
[328819533,1717836649098,-154.40598489,0.00029248,2]
[328819534,1717836649107,-166.71,0.00029248,2]
[328819535,1717836649117,-179.2575586,0.00029272,2]
[328819536,1717836649127,-8544.83,0.00029345,2]
[328819537,1717836649138,-155.00128118,0.00029393,2]
[328819538,1717836649149,-154.35435874,0.00029396,2]
[328819539,1717836649159,-161.70060144,0.000294,2]
[328819540,1717836649169,-1294.34869873,0.000294,2]
[328819541,1717836649180,-6799.05034123,0.000294,2]
[328819542,1717836649190,-8252.59167054,0.00029416,2]
[328819543,1717836649199,-5000.0,0.00029416,2]
[328819544,1717836649210,-5000.0,0.00029416,2]
[328819545,1717836649219,-5000.0,0.00029416,2]
[328819546,1717836649229,-5000.0,0.00029416,2]
[328819547,1717836649239,-610.26,0.00029418,2]
[328819548,1717836649249,-189.29667544,0.00029427,2]
[328819549,1717836649258,-155.06386358,0.00029429,2]
[328819550,1717836649268,-1196.83351,0.0002945,2]
[328819551,1717836649277,-201.0,0.0002949,2]
[328819552,1717836649287,-2760.26,0.00029498,2]
[328819553,1717836649297,-1122.296693,0.000295,2]
[328819554,1717836649307,-1558.18630775,0.000295,5]
[328819555,1717836649316,-3816.0,0.000295,2]
[328819556,1717836649326,-3816.0,0.000295,2]
[328819557,1717836649336,-3816.0,0.000295,2]
[328819558,1717836649345,-3816.0,0.000295,2]
[328819559,1717836649356,-3816.0,0.000295,2]
[328819560,1717836649365,-3816.0,0.000295,2]
[328819561,1717836649375,-3816.0,0.000295,2]
[328819562,1717836649385,-3816.0,0.000295,2]
[328819563,1717836649394,-3816.0,0.000295,2]
[328819564,1717836649403,-3816.0,0.000295,2]
[328819565,1717836649413,-408.458377,0.000295,2]
[328819566,1717836649423,-189.29667544,0.00029524,2]
[328819567,1717836649433,-155.00128118,0.00029557,2]
[328819568,1717836649446,-161.25760978,0.00029585,2]
[328819569,1717836649455,-797.72,0.00029589,4]
[328819570,1717836649465,-797.72,0.00029589,4]
[328819571,1717836649474,-797.72,0.00029589,4]
[328819572,1717836649484,-797.72,0.00029589,4]
[328819573,1717836649495,-797.72,0.00029589,4]
[328819574,1717836649505,-797.72,0.00029589,4]
[328819575,1717836649516,-797.72,0.00029589,4]
[328819576,1717836649525,-797.72,0.00029589,4]
[328819577,1717836649536,-797.72,0.00029589,4]
[328819578,1717836649545,-797.72,0.00029589,4]
[328819579,1717836649555,-797.72,0.00029589,4]
[328819580,1717836649564,-797.72,0.00029589,4]
[328819581,1717836649575,-797.72,0.00029589,4]
[328819582,1717836649586,-544.55,0.00029589,4]
[328819583,1717836649596,-544.55,0.00029589,4]
[328819584,1717836649606,-544.55,0.00029589,4]
[328819585,1717836649616,-1683.445039,0.000296,2]
[328819586,1717836649627,-612.687566,0.000296,2]
[328819587,1717836649638,-163.48925101,0.00029667,2]
[328819588,1717836649648,-189.29667544,0.0002968,2]
[328819589,1717836649660,-2244.593386,0.000297,2]
[328819590,1717836649669,-280.0,0.000297,2]
[328819591,1717836649680,-816.916755,0.000297,2]
[328819592,1717836649689,-2878.0327975,0.000297,2]
[328819593,1717836649698,-150.0,0.000297,6]
[328819594,1717836649708,-10655.2933579,0.00029761,2]
[328819595,1717836649719,-154.35435874,0.00029766,2]
[328819596,1717836649730,-156.89139326,0.00029789,2]
[328819597,1717836649739,-157.060817,0.00029798,16]
[328819598,1717836649749,-15319.42994273,0.00029798,61]
[328819599,1717836649760,-797.72,0.00029799,4]
[328819600,1717836649770,-544.55,0.00029799,4]
[328819601,1717836649780,-2805.741732,0.000298,2]
[328819602,1717836649790,-3928.038426,0.000298,2]
[328819603,1717836649801,-155.0,0.000298,2]
[328819604,1717836649810,-45933.0,0.000298,2]
[328819605,1717836649821,-1021.145943,0.000298,2]
[328819606,1717836649832,-1429.604321,0.000298,2]
[328819607,1717836649842,-1633.83351,0.000298,30]
[328819608,1717836649851,-2503.66689219,0.000298,2]
[328819609,1717836649861,-154.35435874,0.00029809,2]
[328819610,1717836649871,-153.5621195,0.0002981,2]
[328819611,1717836649882,-154.32068212,0.00029823,2]
[328819612,1717836649892,-10655.2933579,0.00029831,2]
[328819613,1717836649903,-388.71360732,0.00029834,2]
[328819614,1717836649913,-5702.18189577,0.0002986,2]
[328819615,1717836649923,-326.97129438,0.00029861,2]
[328819616,1717836649933,-258.46745291,0.00029861,2]
[328819617,1717836649944,-188.39488201,0.00029861,2]
[328819618,1717836649954,-733.07487486,0.00029861,2]
[328819619,1717836649964,-237.0840417,0.00029861,2]
[328819620,1717836649975,-155.17529806,0.00029861,2]
[328819621,1717836649986,-257.88603198,0.00029861,2]
[328819622,1717836649995,-155.11968901,0.00029861,2]
[328819623,1717836650004,-447.95488763,0.00029861,2]
[328819624,1717836650014,-11845.12489192,0.00029861,3]
[328819625,1717836650120,-10968.56338147,0.00029861,2]
[328819626,1717836650132,-189.29667544,0.00029862,2]
[328819627,1717836650142,-797.72,0.00029862,4]
[328819628,1717836650153,-797.72,0.00029862,4]
[328819629,1717836650163,-797.72,0.00029862,4]
[328819630,1717836650173,-797.72,0.00029862,4]
[328819631,1717836650183,-797.72,0.00029862,4]
[328819632,1717836650192,-797.72,0.00029862,4]
[328819633,1717836650202,-797.72,0.00029862,4]
[328819634,1717836650211,-797.72,0.00029862,4]
[328819635,1717836650221,-797.72,0.00029862,4]
[328819636,1717836650230,-797.72109905,0.00029862,4]
[328819637,1717836650240,-544.55,0.00029862,4]